[Event "Azerbaijan-ch 1st League 2025"]
[Site "Baku"]
[Date "2025.01.09"]
[Round "4.5"]
[White "Ahmad, Khagan"]
[Black "Hajialiyev, Islam"]
[Result "1-0"]
[Annotator "TA"]
[ECO "C03"]
[WhiteElo "2406"]
[BlackElo "2217"]
[PlyCount "113"]
[EventDate "2025.01.05"]
[EventType "swiss"]
[EventCountry "AZE"]
[SourceTitle "playchess.com"]
[Source "ChessBase"]
[SourceQuality "1"]
[TimeControl "40/5400+30:1800+30"]

{[%evp 11,113,0,26,27,30,38,41,35,29,40,30,22,35,27,37,43,35,39,41,31,51,12,20,8,18,15,9,15,143,143,141,140,131,141,141,132,155,152,159,163,172,130,222,227,239,189,226,186,180,173,225,229,229,166,177,173,147,126,155,150,225,168,237,241,287,274,293,267,302,250,345,335,476,466,468,398,365,204,538,506,533,531,494,497,570,564,538,518,594,570,816,735,1073,990,1345,1242,790,546,29962,29945,29977,29979,29974,29971]} 1. e4 {[%emt 0:00:29]} e6 {[%emt 0:00:01]} 2. d4 {[%emt 0:00:05]} d5 {[%emt 0:00:06]} 3. Nd2 {[%emt 0:00:03]} Be7 {[%emt 0:00:07]} 4. Ngf3 {[%emt 0:00:55]} Nf6 {[%emt 0:00:14]} 5. Bd3 {[%emt 0:00:09]} c5 {[%emt 0:00:14]} 6. exd5 {[%emt 0:01:53]} exd5 {[%emt 0:01:34]} 7. dxc5 {[%emt 0:00:15]} Bxc5 {[%emt 0:02:32]} 8. Nb3 {[%emt 0:00:51]} Be7 {[%emt 0:03:13]} 9. h3 {[%emt 0:01:12] White is slightly better.} O-O {[%emt 0:00:48]} 10. O-O {[%emt 0:00:07]} Nc6 {[%emt 0:01:23][%cal Bb8c6,Bc6b4,Bb4d3][%mdl 32]} 11. Re1 {[%emt 0:01:11]} Re8 {[%emt 0:09:58]} 12. Bf4 {[%emt 0:02:15][%cal Bc1f4,Bf4e5,Be5d4,Bd4e3][%mdl 32]} Nb4 {[%emt 0:04:26]} 13. c3 {[%emt 0:07:38]} Nxd3 {[%emt 0:01:36]} 14. Qxd3 {[%emt 0:00:04]} Bd7 {[%emt 0:07:34]} 15. Rad1 {[%emt 0:04:07]} Qb6 {[%emt 0:04:14]} 16. Be5 {[%emt 0:06:05]} (16. Be3 {simplifies} Qb5 17. Qxb5 Bxb5 18. Bg5) 16... Ne4 {[%emt 0:25:47]} 17. Bd4 {[%emt 0:02:11]} Qc7 {[%emt 0:13:27]} 18. Be3 {[%emt 0:01:49]} Bc6 {[%emt 0:01:06]} 19. Nfd4 {[%emt 0:08:08]} Qd7 {[%emt 0:08:41]} (19... Ba4 $11 {keeps the balance.}) 20. Nxc6 $16 {[%emt 0:00:33]} Qxc6 {[%emt 0:01:53]} 21. Qxd5 {[%emt 0:00:21]} Qxd5 {[%emt 0:00:48]} 22. Rxd5 {[%emt 0:00:03]} Nf6 {[%emt 0:00:01] Prevents Rd7.} 23. Re5 {[%emt 0:00:45] White is more active.} Bd6 {[%emt 0:00:04]} 24. Rxe8+ {[%emt 0:00:08]} Rxe8 {[%emt 0:00:01]} 25. Rd1 {[%emt 0:00:19]} Bb8 {[%emt 0:00:39]} 26. Na5 {[%emt 0:00:11]} b6 {[%emt 0:01:29]} (26... Bc7 $16) 27. Nc6 $18 {[%emt 0:00:08]} Kf8 {[%emt 0:00:24]} 28. g4 {[%emt 0:06:17]} h6 {[%emt 0:04:02]} 29. g5 {[%emt 0:04:54]} hxg5 {[%emt 0:00:56]} 30. Bxg5 {[%emt 0:00:02]} Nh7 {[%emt 0:04:17]} (30... Rc8 $142 31. Bxf6 gxf6) 31. Bd8 {[%emt 0:01:07]} Bf4 {[%emt 0:00:52]} 32. Kf1 {[%emt 0:01:06]} Bg5 {[%emt 0:01:33]} 33. Bxg5 {[%emt 0:00:55]} Nxg5 {[%emt 0:00:02][%mdl 4096] Endgame. KRN-KRN} 34. Rd5 {[%emt 0:51:14]} f6 {[%emt 0:00:33]} 35. Nxa7 {[%emt 0:00:00]} Kf7 {[%emt 0:01:13]} (35... Ra8 $16) 36. Nb5 {[%emt 0:00:00][%cal Od5g5] [#] And now Rxg5! would win.} Kg6 {[%emt 0:01:11]} (36... Nxh3 {keeps fighting.} 37. Nd6+ Ke6) 37. h4 {[%emt 0:00:00][%cal Bh3h4,Bh4h5][%mdl 32]} Nf3 {[%emt 0:00:44]} 38. h5+ {[%emt 0:00:00]} Kh6 {[%emt 0:00:58]} 39. Nd4 {[%emt 0:00:00]} Re1+ {[%emt 0:00:42]} 40. Kg2 {[%emt 0:00:00]} Ne5 {[%emt 0:00:00]} 41. Nf3 {[%emt 0:00:00]} Re2 {[%emt 0:01:19]} (41... Ra1 $142 42. Nxe5 fxe5 43. Rxe5 Rxa2) 42. Nxe5 {[%emt 0:00:00]} fxe5 {[%emt 0:00:02] KR-KR} 43. Rb5 {[%emt 0:00:00]} Kxh5 {[%emt 0:00:26]} 44. Kf1 {[%emt 0:00:00]} (44. Rxb6 $142 {aiming for a4.} e4 45. Rb4) 44... Rc2 $2 {[%emt 0:01:06] [#]} (44... Rd2 {is tougher.} 45. Ke1 (45. Rxb6 Kg4 $16) 45... Rc2 46. Rxe5+ (46. Rxb6 Kg4 $18) 46... g5) 45. Rxe5+ {[%emt 0:00:00]} Kg4 {[%emt 0:00:08]} 46. Re2 {[%emt 0:00:00]} Rc1+ {[%emt 0:00:06]} 47. Kg2 {[%emt 0:00:00]} Kf4 {[%emt 0:00:08]} 48. Re6 {[%emt 0:00:00]} Ra1 {[%emt 0:03:04]} 49. a3 {[%emt 0:00:00][%cal Ba2a3,Ba3a4,Ba4a5,Ba5a6][%mdl 32]} (49. Rxb6 Rxa2 50. Rb4+ Ke5 51. f4+ Kd6 $18) 49... Ra2 {[%emt 0:00:09]} 50. Rxb6 {[%emt 0:00:00]} g5 {[%emt 0:00:04][%cal Bg7g5,Bg5g4][%mdl 32]} 51. c4 {[%emt 0:00:00][%cal Bc3c4,Bc4c5][%mdl 32]} Ra1 {[%emt 0:00:12]} 52. c5 {[%emt 0:00:00]} Rc1 {[%emt 0:00:06]} 53. a4 {[%emt 0:00:00]} g4 {[%emt 0:00:09]} 54. a5 {[%emt 0:00:00]} Rc2 {[%emt 0:00:01]} 55. Rb4+ {[%emt 0:00:00] White mates.} Kf5 {[%emt 0:00:09]} 56. a6 {[%emt 0:00:00]} Rxc5 {[%emt 0:00:06]} 57. Ra4 {[%emt 0:00:00] Weighted Error Value: White=0.13 (very precise) /Black=0.40.  Mistake:       	White=1     	Black=7      Inaccurate:     	White=1     	Black=3      OK:         	White=16    	Black=13     Best:        	White=7     	---} 1-0

[Event "Azerbaijan-ch 1st League 2025"]
[Site "Baku"]
[Date "2025.01.09"]
[Round "4.6"]
[White "Suleymanli, Suleyman"]
[Black "Musayev, Eldar"]
[Result "1-0"]
[Annotator "TA"]
[ECO "A07"]
[WhiteElo "2280"]
[BlackElo "2163"]
[PlyCount "97"]
[EventDate "2025.01.05"]
[EventType "swiss"]
[EventCountry "AZE"]
[SourceTitle "playchess.com"]
[Source "ChessBase"]
[SourceQuality "1"]
[TimeControl "40/5400+30:1800+30"]

{[%evp 9,97,6,15,9,12,-4,41,20,22,20,13,7,11,0,0,0,0,0,0,0,0,-9,6,1,2,0,0,0,0,0,-7,0,-12,0,0,0,0,0,0,0,0,-13,-6,0,0,-38,-35,-35,-39,-54,-37,-39,-26,-33,-16,-21,-21,-20,0,0,0,0,0,0,0,0,0,0,14,8,334,329,295,261,252,228,888,687,1420,1370,1926,1386,1734,1854,1886,1848,29980,29981,29981,29982]} 1. Nf3 {[%emt 0:00:02]} d5 {[%emt 0:00:20]} 2. g3 {[%emt 0:00:06]} Bg4 {[%emt 0:00:45]} 3. Bg2 {[%emt 0:00:14]} Nd7 {[%emt 0:00:26]} 4. h3 {[%emt 0:00:28]} Bxf3 {[%emt 0:00:46]} 5. Bxf3 {[%emt 0:00:06]} Ngf6 {[%emt 0:00:27]} 6. O-O {[%emt 0:01:07]} c6 {[%emt 0:00:27]} 7. d4 {[%emt 0:02:16]} e6 {[%emt 0:03:19] [#]} 8. c4 $1 {[%emt 0:01:20]} Bd6 {[%emt 0:06:01]} (8... dxc4 9. Qc2) 9. Qd3 {[%emt 0:33:34]} O-O {[%emt 0:04:27]} 10. Nc3 {[%emt 0:00:16]} Re8 {[%emt 0:01:00]} 11. b3 {[%emt 0:03:52]} Qe7 {[%emt 0:12:14]} 12. Bg2 {[%emt 0:11:19]} e5 {[%emt 0:08:33]} 13. cxd5 {[%emt 0:02:51]} e4 {[%emt 0:00:17]} 14. Qd1 {[%emt 0:04:51]} cxd5 {[%emt 0:00:12]} 15. Nb5 {[%emt 0:00:47]} Nf8 {[%emt 0:04:11]} 16. Nxd6 {[%emt 0:00:43]} Qxd6 {[%emt 0:00:02]} 17. Bf4 {[%emt 0:11:35]} Qb6 {[%emt 0:01:56]} 18. g4 {[%emt 0:07:35]} Ne6 {[%emt 0:02:32]} 19. Be5 {[%emt 0:00:01]} Nd7 {[%emt 0:01:15]} 20. Bg3 {[%emt 0:00:50]} Qxd4 {[%emt 0:08:16]} 21. e3 {[%emt 0:00:36]} Qxd1 {[%emt 0:00:22]} 22. Rfxd1 {[%emt 0:00:05]} Nb6 {[%emt 0:00:15]} 23. Rac1 {[%emt 0:05:36]} Rac8 {[%emt 0:01:17]} 24. Rxc8 {[%emt 0:01:14]} Rxc8 {[%emt 0:00:17]} 25. f3 {[%emt 0:00:05]} exf3 {[%emt 0:14:47]} 26. Bxf3 {[%emt 0:01:01]} Rc3 {[%emt 0:00:02]} 27. Be1 {[%emt 0:02:09] A strong pair of Bishops.} Rxe3 {[%emt 0:05:59]} 28. Kf2 $1 {[%emt 0:00:05]} d4 {[%emt 0:00:51]} 29. Bd2 {[%emt 0:02:21]} Re5 $1 {[%emt 0:02:00]} (29... Rd3 30. Ke2 Rxf3 (30... Nc5 $2 31. Rc1 $18) 31. Kxf3 $16) 30. Bxb7 {[%emt 0:00:15]} g5 {[%emt 0:03:55]} 31. Bf3 {[%emt 0:06:20]} Nd7 {[%emt 0:08:02]} 32. b4 {[%emt 0:01:19]} Nb6 {[%emt 0:02:35]} 33. Rc1 {[%emt 0:01:08] Inhibits Nc4.} Nd5 {[%emt 0:01:18]} 34. Rc8+ {[%emt 0:00:25]} Kg7 {[%emt 0:00:07]} 35. Ra8 {[%emt 0:00:26]} Ne3 {[%emt 0:01:02]} 36. Rxa7 {[%emt 0:00:51]} Nf4 $1 {[%emt 0:00:02]} 37. Rd7 {[%emt 0:00:38]} Nxh3+ {[%emt 0:05:28]} 38. Kg3 {[%emt 0:00:01]} Ng1 {[%emt 0:00:02] Strongly threatening ...Nf1+.} 39. Rxd4 {[%emt 0:00:31]} h5 $2 {[%emt 0:03:22][%mdl 8192] [#]} 40. Bc3 $1 $18 {[%emt 0:00:00]} (40. gxh5 $2 Nf5+ 41. Kf2 Nxd4 $19) (40. Bxe3 Rxe3 41. Kf2 Rxf3+ $11 (41... Nxf3 42. Kxe3 Nxd4 43. Kxd4 $11)) 40... h4+ {[%emt 0:00:00]} 41. Kf2 {[%emt 0:00:58]} Nh3+ {[%emt 0:03:11] [#]} 42. Ke1 $1 {[%emt 0:03:03]} (42. Ke2 Nd5+ (42... Nxg4+ $2 {is the wrong capture.} 43. Kd2 $18) 43. Kd2 Nxc3 44. Kxc3 Ng1 $11) 42... Re6 $2 {[%emt 0:18:54]} ({Much weaker is} 42... Nxg4+ 43. Re4 f6 44. Bxe5 Nxe5 45. Bh1 $18) (42... Kf8) 43. Re4+ {[%emt 0:03:06]} Kf8 {[%emt 0:00:09]} 44. Rxe6 {[%emt 0:03:18]} fxe6 {[%emt 0:00:02]} 45. b5 {[%emt 0:03:13][%cal Bb4b5,Bb5b6][%mdl 32] b6 would kill now.} Nc4 {[%emt 0:00:05]} 46. a4 {[%emt 0:02:28][%cal Ba2a4,Ba4a5][%mdl 32] and a5 would now be decisive} Nf4 {[%emt 0:01:07]} 47. a5 {[%emt 0:01:01]} h3 {[%emt 0:05:12]} 48. b6 {[%emt 0:01:05]} Nd3+ {[%emt 0:00:31]} 49. Kf1 {[%emt 0:01:31]} 1-0

[Event "Azerbaijan-ch 1st League 2025"]
[Site "Baku"]
[Date "2025.01.09"]
[Round "4.7"]
[White "Gurbanov, Ismayil"]
[Black "Ughuzov, Ravan"]
[Result "1/2-1/2"]
[Annotator "TA"]
[ECO "B10"]
[WhiteElo "2248"]
[BlackElo "2250"]
[PlyCount "99"]
[EventDate "2025.01.05"]
[EventType "swiss"]
[EventCountry "AZE"]
[SourceTitle "playchess.com"]
[Source "ChessBase"]
[SourceQuality "1"]
[TimeControl "40/5400+30:1800+30"]

{[%evp 9,99,-32,0,6,12,-25,-3,-10,-17,0,-13,-43,-27,-64,0,-72,-52,-46,-53,-55,0,0,0,-34,-36,-54,-45,-38,-30,-54,-45,-75,-74,-78,-88,-77,-66,-96,-92,-106,-68,-52,-98,-98,-37,-69,0,0,0,-4,0,0,0,0,0,0,0,0,0,0,0,0,0,0,0,0,8,0,9,0,0,0,0,0,0,0,0,-307,0,0,0,0,0,0,0,0,0,0,0,0,0,0]} 1. e4 {[%emt 0:00:08]} c6 {[%emt 0:00:13]} 2. Ne2 {[%emt 0:00:09]} d5 {[%emt 0:00:33]} 3. e5 {[%emt 0:00:03]} Bf5 {[%emt 0:02:37]} 4. Nd4 {[%emt 0:00:46]} Bg6 {[%emt 0:07:27]} 5. h4 {[%emt 0:00:06][%cal Bh2h4,Bh4h5][%mdl 32]} h6 {[%emt 0:02:18]} 6. h5 {[%emt 0:00:37]} Bh7 {[%emt 0:00:21]} 7. e6 {[%emt 0:00:10]} Nf6 {[%emt 0:04:13]} 8. Qe2 {[%emt 0:16:58]} Qd6 {[%emt 0:07:00]} 9. g3 {[%emt 0:07:50]} fxe6 {[%emt 0:18:49]} 10. Qxe6 {[%emt 0:03:42]} Nbd7 {[%emt 0:02:48]} 11. d3 {[%emt 0:04:35][%cal Bd2d3,Bd3d4][%mdl 32]} Qc5 {[%emt 0:20:50]} (11... Qb4+ $15 12. c3 Qb6) 12. c3 {[%emt 0:10:54]} (12. Nb3 $1 $11 {remains equal.} Qd6 (12... Qxc2 13. Na3 $14) 13. Qxd6 exd6 14. Nc3) 12... Bg8 {[%emt 0:02:09]} 13. Qe2 {[%emt 0:06:52]} e5 {[%emt 0:27:42]} 14. Nf3 {[%emt 0:01:06]} e4 {[%emt 0:00:00]} (14... Qe7 $15) 15. Nh4 $1 $11 {[%emt 0:02:39]} Be6 {[%emt 0:00:00]} 16. d4 {[%emt 0:26:09]} Qb6 {[%emt 0:00:00]} 17. Bh3 {[%emt 0:00:02] Against Bg4} Bxh3 {[%emt 0:00:00]} 18. Rxh3 {[%emt 0:00:01]} c5 {[%emt 0:00:00]} 19. Be3 {[%emt 0:02:39]} cxd4 {[%emt 0:00:00]} 20. cxd4 {[%emt 0:00:01]} Qe6 $36 {[%emt 0:00:00][%mdl 2048] Keeping White busy.} 21. Rh1 {[%emt 0:00:01]} Bb4+ {[%emt 0:00:00]} 22. Kf1 {[%emt 0:00:34]} O-O {[%emt 0:00:00]} 23. Ng6 {[%emt 0:00:31] Prevents Ng4.} Rfc8 {[%emt 0:00:00]} 24. Kg2 {[%emt 0:00:17]} Ng4 {[%emt 0:00:00]} 25. Nf4 {[%emt 0:01:35]} Nxe3+ {[%emt 0:00:00]} 26. fxe3 {[%emt 0:00:46]} Qc6 {[%emt 0:00:00]} (26... Qf7 $17 27. Na3 a6) 27. Nc3 {[%emt 0:00:33]} Bxc3 {[%emt 0:00:55]} (27... Nf6 $1 $15) 28. Rac1 {[%emt 0:00:11]} Qd6 {[%emt 0:00:17]} 29. bxc3 {[%emt 0:01:04]} Nb6 {[%emt 0:00:45]} 30. Rh4 {[%emt 0:00:14][%cal Bh1h4,Bh4g4,Bg4g7][%mdl 32]} Rf8 {[%emt 0:02:24]} 31. Rg4 {[%emt 0:01:21]} Rf6 {[%emt 0:01:16]} 32. Rb1 {[%emt 0:00:42]} Rc8 {[%emt 0:00:29]} 33. Rxb6 {[%emt 0:00:52]} axb6 {[%emt 0:00:18]} 34. Rxg7+ $1 {[%emt 0:00:02]} Kxg7 {[%emt 0:01:08]} 35. Qg4+ {[%emt 0:00:01]} Kh7 {[%emt 0:00:19]} 36. Qxc8 {[%emt 0:00:03][%mdl 4096] Endgame KQR-KQN} Rf7 {[%emt 0:01:54]} 37. Qg4 {[%emt 0:00:12] and Qg6+ would now be decisive} Qf6 {[%emt 0:00:49]} 38. a4 {[%emt 0:03:15]} (38. Nxd5 $2 Qf1+ 39. Kh2 Rf2#) 38... Qg5 {[%emt 0:01:24]} 39. Qe6 {[%emt 0:00:33]} (39. Kh3 {simplifies} Qxg4+ 40. Kxg4 Kg7 41. Nxd5 Rf3 42. c4) 39... Rg7 {[%emt 0:00:14]} 40. Qh3 {[%emt 0:00:00] Active counter play!} Rf7 {[%emt 0:00:00]} 41. c4 {[%emt 0:05:52]} dxc4 {[%emt 0:06:39] ...b5 would now be deadly.} 42. Qe6 {[%emt 0:00:10][%csl LRb6,LRc4,LRe4,LRf7]} Re7 {[%emt 0:06:33]} 43. Qxc4 $2 {[%emt 0:05:14][%mdl 8192]} (43. Qc8 $1 $11) 43... Qg4 $2 {[%emt 0:00:06]} ({Black should play} 43... Rg7 $19 44. Ng6 Qxh5 (44... Qxe3 45. Nf8+ Kh8 46. Ng6+ Rxg6 47. hxg6 $11)) 44. Qd5 {[%emt 0:05:35]} Qf3+ {[%emt 0:00:34]} 45. Kh2 {[%emt 0:00:03]} Rg7 {[%emt 0:03:37]} (45... Qxe3 46. Qf5+ Kg7 (46... Kg8 47. Ne6 $16) 47. Qg6+ Kh8 48. Qf6+ (48. Qxh6+ Kg8 $11) 48... Rg7 49. Qf8+ (49. Qxh6+ Kg8 $11) 49... Kh7 50. Qf5+ Kg8 51. Ng6 Qd2+ (51... Qxd4 52. Qf8+ Kh7 53. Qh8#) 52. Kh3 $18) 46. Qf5+ {[%emt 0:02:15]} Kg8 {[%emt 0:00:06]} 47. Qe6+ {[%emt 0:00:53]} Kh7 {[%emt 0:00:08]} 48. Qf5+ {[%emt 0:01:25]} (48. Qxb6 $2 {is a self mate.} Qxg3+ 49. Kh1 Qg1#) 48... Kg8 {[%emt 0:00:07]} 49. Qc8+ {[%emt 0:01:25]} Kh7 {[%emt 0:00:05]} 50. Qf5+ {[%emt 0:00:03]} 1/2-1/2

[Event "Azerbaijan-ch 1st League 2025"]
[Site "Baku"]
[Date "2025.01.09"]
[Round "4.8"]
[White "Rustamov, Rustam"]
[Black "Garakhanov, Shamsi"]
[Result "1-0"]
[Annotator "TA"]
[ECO "B97"]
[WhiteElo "2305"]
[BlackElo "2022"]
[PlyCount "85"]
[EventDate "2025.01.05"]
[EventType "swiss"]
[EventCountry "AZE"]
[SourceTitle "playchess.com"]
[Source "ChessBase"]
[SourceQuality "1"]
[TimeControl "40/5400+30:1800+30"]

{[%evp 19,85,-2,-2,-24,64,61,79,61,59,42,70,32,35,0,0,0,8,20,11,-14,53,50,60,46,41,47,87,60,65,33,40,40,291,290,263,168,172,136,139,122,138,135,148,127,399,386,397,387,394,390,29953,29954,29952,29956,29957,29958,29957,29965,29955,29963,5222,1496,1385,1315,1526,480,29996,29997]} 1. e4 {[%emt 0:00:01]} c5 {[%emt 0:00:04]} 2. Nf3 {[%emt 0:00:07]} d6 {[%emt 0:00:05]} 3. d4 {[%emt 0:00:31]} cxd4 {[%emt 0:00:07]} 4. Nxd4 {[%emt 0:00:03]} Nf6 {[%emt 0:00:05]} 5. Nc3 {[%emt 0:00:05]} a6 {[%emt 0:00:10]} 6. Bg5 {[%emt 0:01:52]} e6 {[%emt 0:00:43]} 7. f4 {[%emt 0:00:13]} Qb6 {[%emt 0:01:13]} 8. Nb3 {[%emt 0:01:10]} Nbd7 {[%emt 0:02:51]} 9. Qf3 {[%emt 0:00:59]} Qc7 {[%emt 0:01:56]} 10. O-O-O {[%emt 0:00:22]} b5 {[%emt 0:02:22]} 11. Bxf6 {[%emt 0:11:26]} gxf6 {[%emt 0:09:22]} (11... Nxf6 $11 12. Bd3 b4) 12. a3 $14 {[%emt 0:00:32] White is more active.} Rb8 {[%emt 0:08:44]} 13. Rd4 {[%emt 0:04:55]} Nc5 {[%emt 0:02:59]} 14. Kb1 {[%emt 0:02:11]} Qb6 {[%emt 0:07:59] ...Nxb3 would now be deadly.} 15. Qd1 {[%emt 0:03:32][%cal Of4f5]} Bd7 {[%emt 0:12:59] [#]} 16. f5 $1 {[%emt 0:05:15]} a5 $1 {[%emt 0:06:43]} 17. Na2 {[%emt 0:08:06]} Bc6 {[%emt 0:11:08]} 18. fxe6 {[%emt 0:03:21]} fxe6 {[%emt 0:00:18]} 19. Rxd6 {[%emt 0:05:18]} Nxb3 {[%emt 0:03:07]} (19... Bxd6 $11 20. Qxd6 Nxe4 (20... Bxe4 $2 21. Qxc5 b4 22. axb4 $16) 21. Qxe6+ Kf8) 20. Rxe6+ {[%emt 0:01:22]} Kf7 {[%emt 0:00:52]} 21. Rxc6 {[%emt 0:00:56]} Qxc6 {[%emt 0:00:59]} 22. cxb3 {[%emt 0:00:11]} h5 {[%emt 0:07:04]} 23. Nc3 {[%emt 0:01:26]} Bxa3 $1 {[%emt 0:02:29]} 24. Bxb5 {[%emt 0:08:21]} Rxb5 {[%emt 0:00:03]} 25. Nxb5 {[%emt 0:00:06]} Qxe4+ $2 {[%emt 0:00:05][%mdl 8192]} (25... Qxb5 $14 26. bxa3 Rb8) 26. Ka2 $18 {[%emt 0:01:02]} Bb4 {[%emt 0:01:09]} 27. Qd7+ {[%emt 0:02:49]} Kg6 {[%emt 0:01:16][%cal Oe4f5]} 28. Rc1 {[%emt 0:01:10]} Qf5 {[%emt 0:03:00] [#]} 29. Qc6 $1 {[%emt 0:04:11]} Rd8 {[%emt 0:01:27] Wards off Nd4} 30. h3 {[%emt 0:04:02]} Qd5 {[%emt 0:01:31]} 31. Qc4 {[%emt 0:01:58]} Qxg2 $2 {[%emt 0:01:47][%mdl 8192]} (31... Kf7 $16 32. Rc2 Kg7) 32. Nd4 {[%emt 0:00:41]} Qd5 {[%emt 0:04:38]} 33. Qd3+ {[%emt 0:01:22]} f5 {[%emt 0:00:50][%cal Oa5a4]} 34. Qg3+ {[%emt 0:02:37]} Kf6 $2 {[%emt 0:00:29]} (34... Kf7 $18) 35. Qh4+ {[%emt 0:00:23]} Kf7 {[%emt 0:00:33]} 36. Qxh5+ {[%emt 0:00:17]} Kf6 {[%emt 0:00:40]} 37. Qh6+ {[%emt 0:01:58]} Kf7 {[%emt 0:00:15]} 38. Rc7+ {[%emt 0:01:47]} Rd7 {[%emt 0:00:21]} 39. Qh7+ {[%emt 0:00:24]} Ke8 {[%emt 0:00:16]} 40. Qg6+ {[%emt 0:00:00]} (40. Qxf5 Qxd4 41. Qg6+ Kd8 $11) (40. Rc8+ $142 Rd8 41. Qh8+ (41. Qxf5 Qxd4 42. Qh5+ Kf8 $11) 41... Bf8 42. Rxd8+ Qxd8 43. Qh5+ (43. Nxf5 Qd5 $18) 43... Kd7 44. Qxf5+ (44. Nxf5 Qe8 $18) 44... Kd6 45. Qe6+ Kc5 46. Qe5+ Qd5 47. Ne6+ Kc6 48. Qxd5+ Kxd5 49. Nxf8) 40... Kd8 {[%emt 0:00:00]} 41. Rc4 {[%emt 0:05:54]} (41. Qxf5 $2 Qxf5 (41... Kxc7 $2 42. Qf4+ Bd6 43. Qc1+ Kb7 44. Ne2 $19) (41... Qxd4 42. Rc4 $11) 42. Nxf5 Kxc7 $19) 41... Rd6 {[%emt 0:02:32]} 42. Nc6+ {[%emt 0:01:38]} ({Less strong is} 42. Qxf5 Qxf5 43. Nxf5 Rf6 $16) (42. Qg5+ $142 Kd7 43. Nxf5 (43. Qxf5+ Qxf5 44. Nxf5 Rd5 $16)) 42... Kd7 {[%emt 0:04:09]} (42... Rxc6 $18 43. Qxc6 Qxc6 44. Rxc6 Ke7) 43. Qg7+ {[%emt 0:47:26]} (43. Nxb4 axb4 44. Qg7+ Ke6 45. Qg8+ (45. Rxb4 $2 {gets mated.} Ra6+) 45... Kf6 46. Qh8+ Kg6 $11) 1-0